Workbook

Sheet Portada

Sheet ContraPortada

Sheet INDICADORES
D1: SECRETARIA DE EDUCACION DISTRITAL CARTAGENA DE INDIAS
D2: GEDGE02. COMPROMISO DE LA DIRECCIÓN
D3: INFORME DE SEGUIMIENTO
D4: Codigo: GEDGE02-F001 | F4: Versión: 1 | H4: Vigencia: 20/10/2009
B5: INDICADORES | D5: UBICACIÓN GEOGRÁFICA
E6: META | G6: DICIEMBRE
G7: valor | H7: % | I7: TOTAL
B8: LA ESCUELA COMO EJE INTEGRADOR DE LOS PROCESOS FORMATIVOS | C8: Nodo social humanistico implementado | D8: URBANO | E8: 1 | F8: 1 | G8: 0 | H8: 0 | I8: =(H8+H11)/2 -> 0
D11: RURAL
C14: Numero de institucione esducativas oficiales beneficiadas con el nodo social humanistico implementado | D14: URBANO | E14: 2 | F14: 1 | G14: 1 | H14: =SUM(G14/F14) -> 1 | I14: =(H14+H17) -> 2
D17: RURAL | F17: 1 | G17: 1 | H17: =G17/F17 -> 1
C20: SUB - TOTAL PROYECTO | I20: =SUM(I8:I19)/3 -> 0.6666666667
B22: ESCUELAS VERDES | C22: Proyectos ambientales educativos - PRAES ajustados en IEO | D22: URBANO | E22: 10 | F22: 7 | G22: 7 | H22: =G22/F22 -> 1 | I22: =SUM(H22:H27)/2 -> 1
D25: RURAL | F25: 3 | G25: 3 | H25: =G25/F25 -> 1
C28: SUB - TOTAL PROYECTO | I28: =SUM(I22)/1 -> 1
B30: CIUDAD ESCUELA COMPROMISOS DE TODOS Y PARA TODOS | C30: Numero de IEO con el programa escuelas para padres fortalecidos | D30: URBANO | E30: 10 | F30: 8 | G30: 8 | H30: =G30/F30 -> 1 | I30: =(H30+H33)/2 -> 1
D33: RURAL | F33: 2 | G33: 2 | H33: =G33/F33 -> 1
B36: IMPLEMENTACION DE LA CATEDRADE LA PAZ | C36: SUB - TOTAL PROYECTO | I36: =SUM(I30:I35)/1 -> 1
C38: Docentes formados en justicia, reconciliacion y tolerancia | D38: URBANO | E38: 200 | F38: 160 | G38: 65 | H38: =G38/F38 -> 0.40625 | I38: =(H38+H41)/2 -> 0.540625
D41: RURAL | F41: 40 | G41: 27 | H41: =G41/F41 -> 0.675
C44: Numero de IEO con la catedra Cartagena en paz implementada | D44: URBANO | E44: 10 | F44: 8 | G44: 6 | H44: =G44/F44 -> 0.75 | I44: =(H44+H47)/2 -> 0.875
D47: RURAL | F47: 2 | G47: 2 | H47: =G47/F47 -> 1
B50: MEJORES DOCENTES Y DIRECTIVOS DOCENTES | C50: SUB - TOTAL PROYECTO | I50: =SUM(I38:I49)/2 -> 0.7078125
C52: Numero de docentes formados en evaluacion por compentencias | D52: URBANO | E52: 225 | F52: 135 | G52: 148 | H52: =G52/F52 -> 1.096296296 | I52: =(H52+H55)/2 -> 0.937037037
D55: RURAL | F55: 90 | G55: 70 | H55: =G55/F55 -> 0.7777777778
C58: Numero de docentes formados en metodologia de investigacion para el mejoramiento de la calidad educativa | D58: URBANO | E58: 100 | F58: 60 | G58: 123 | H58: =G58/F58 -> 2.05 | I58: =SUM(H58:H59)/2 -> 1.4375
D59: RURAL | F59: 40 | G59: 33 | H59: 0.825
C60: Numero de docentes y directivos docentes formados en especializaciones y/o maestrias. | D60: URBANO | E60: 40 | F60: 24 | G60: 123 | H60: 5.125 | I60: =SUM(H60:H61)/2 -> 3.59375
D61: RURAL | F61: 16 | G61: 33 | H61: 2.0625
C62: Numero de docentes y directivos docentes cualificado en gestion escolar | D62: URBANO | E62: 70 | F62: 42 | G62: 17 | H62: 0.4047619048 | I62: =SUM(H62:H63)/2 -> 0.2916666667
D63: RURAL | F63: 28 | G63: 5 | H63: 0.1785714286
C64: Numero de docentes y directivos docentes con experiencias educativas innovadoras para el mejoramiento de la calidad educativa | D64: URBANO | E64: 100 | F64: 60 | G64: 280 | H64: 4.666666667 | I64: =SUM(H64:H65)/2 -> 3.083333333
D65: RURAL | F65: 40 | G65: 60 | H65: 1.5
C66: SUB - TOTAL PROYECTO | I66: 1
B68: FORTALECIMIENTO DEL MODELO PEDAGOGICO EN LAS INSTITUCIONES ETNOEDUCATIVAS DEL DISTRITO DE CARTAGENA | C68: Numero de IEO Etnoeducativa con PEI ajustado y actualizado | D68: URBANO | E68: 5 | F68: 0 | G68: =SUM(F68) -> 0 | H68: 0 | I68: =SUM(H68:H73)/2 -> 0.5
D71: RURAL | F71: 5 | G71: =SUM(F71) -> 5 | H71: =G71/F71 -> 1
C74: Numero de IEO que desarrollan la Catedra de estudios Afrocolombianos | D74: RURAL | E74: 10 | F74: 0 | G74: 0 | H74: 0 | I74: =SUM(H74:H75)/2 -> 0.5
D75: URBANO | F75: 10 | G75: 10 | H75: =G75/F75 -> 1
C76: SUB - TOTAL PROYECTO | I76: =SUM(I68:I74)/2 -> 0.5
B78: SABER MAS SABER MEJOR- GESTION ESCOLAR DE INSTITUCIONES EDUCATIVAS OFICIALES | C78: Numero de establecimiento Educativos Oficiales con Indice Sintetico de Calidad Educativa -ISCE en la Media, con nivel al menos igual al ISCE promedio Nacional | D78: URBANO | E78: 9 | F78: 7 | G78: 7 | H78: =G78/F78 -> 1 | I78: =SUM(H78:H83)/2 -> 1
D81: RURAL | F81: 2 | G81: 2 | H81: =G81/F81 -> 1
C84: Numero de establecimientos Educativos Oficiales con grado 11° con desempeños alineados en clasificacion A+, A y B | D84: URBANO | E84: 6 | F84: 5 | G84: 5 | H84: =G84/F84 -> 1 | I84: =SUM(H84:H85)/2 -> 1
D85: RURAL | F85: 1 | G85: 1 | H85: =G85/F85 -> 1
C86: Mejorar componente desempeño (ISCE) Basica primaria | D86: URBANO | E86: 5.25 | F86: 5.25 | G86: 5.25 | H86: =G86/F86 -> 1 | I86: =H86/1 -> 1
D87: RURAL
C88: Mejorar componente desempeño (ISCE) Basica secundaria | D88: URBANO | E88: 4.95 | F88: 4.95 | G88: 4.95 | H88: =G88/F88 -> 1 | I88: =H88/1 -> 1
D89: RURAL
C90: Mejorar componente desempeño (ISCE) Media | D90: URBANO | E90: 5.42 | F90: 5 | G90: 5 | H90: =G90/F90 -> 1 | I90: =H90/1 -> 1
D91: RURAL
C92: Numero de IEO con semilleros de investigacion implementados | D92: URBANO | E92: 12 | F92: 12 | G92: 12 | H92: =G92/F92 -> 1 | I92: =H92/1 -> 1
D93: RURAL
C94: SUB - TOTAL PROYECTO | I94: =SUM(I78:I93)/6 -> 1
B96: ACTUALIZACION DE CURRICULOS ESCOLARES | C96: Numero de instituciones educativas con curriculos ajustados a la politica vigente implementado | D96: URBANO | E96: 10 | F96: 15 | G96: 15 | H96: =G96/F96 -> 1 | I96: =(H96+H99)/2 -> 1
D99: RURAL | F99: 1 | G99: 1 | H99: =G99/F99 -> 1
C102: Numero de establecimientos educativos oficiales con bajo indice en los indicadores de calidad y eficiencia interna, fortalecidos en la gestion escolar integral. | D102: URBANO | E102: 10 | F102: 6 | G102: 6 | H102: =G102/F102 -> 1 | I102: =(H102+H103)/2 -> 1
D103: RURAL | F103: 4 | G103: 4 | H103: =G103/F103 -> 1
C104: Numero de IEO con Proyectos educativos resignificados | D104: URBANO | E104: 10 | F104: 6 | G104: 6 | H104: =G104/F104 -> 1 | I104: =(H104+H105)/2 -> 1
D105: RURAL | F105: 4 | G105: 4 | H105: =G105/F105 -> 1
C106: SUB - TOTAL PROYECTO | I106: =SUM(I96:I105)/3 -> 1
B108: INCORPORACIÓN DE LA TECNOLOGÍA EN EL PROCESO DE ENSEÑANZA Y APRENDIZAJE | C108: Número de docentes y directivos docentes formados en uso y apropiación de TICs | D108: URBANO | E108: 532 | F108: 500 | G108: 572 | H108: =G108/F108 -> 1.144 | I108: =(H108+H109)/2 -> 1.22825
D109: RURAL | F109: 32 | G109: 42 | H109: =G109/F109 -> 1.3125
C110: Número de docentes que aplican las TIC en procesos de enseñanza y aprendizajes | D110: URBANO | E110: 60 | F110: 40 | G110: 30 | H110: 0.75 | I110: =(H110+H111)/2 -> 0.875
D111: RURAL | F111: 20 | G111: 20 | H111: 1
C112: SUB - TOTAL PROYECTO | I112: 1
B113: ESCUELAS BILINGÜES | C113: % DE ESTUDIANTES de IEO con jornada extendida bilingüe con nivel minimo "B1" en las pruebas saber 11°, según el MCERL | D113: URBANO | E113: 0.05 | F113: 0.0475 | G113: 0.0475 | H113: =G113/F113 -> 1 | I113: =SUM(H113,H116)/2 -> 1
D116: RURAL | F116: 0.0025 | G116: 0.0025 | H116: =G116/F116 -> 1
C119: SUB - TOTAL PROYECTO | I119: =SUM(I113:I118)/1 -> 1
C123: GENERAL POR PROYECTO
C124: LA ESCUELA COMO EJE INTEGRADOR DE LOS PROCESOS FORMATIVOS | E124: =I20 -> 0.6666666667
C126: ESCUELAS VERDES | E126: =I28 -> 1
C128: CIUDAD ESCUELA COMPROMISOS DE TODOS Y PARA TODOS | E128: =I36 -> 1
C130: IMPLEMENTACION DE LA CATEDRA DE LA PAZ | E130: =I50 -> 0.7078125
C132: MEJORES DOCENTES Y DIRECTIVOS DOCENTES | E132: =I66 -> 1
C134: FORTALECIMIENTO DEL MODELO PEDAGOGICO EN LAS INSTITUCIONES ETNOEDUCATIVAS DEL DISTRITO DE CARTAGENA | E134: =I76 -> 0.5
C136: SABER MAS SABER MEJOR- GESTION ESCOLAR DE INSTITUCIONES EDUCATIVAS OFICIALES | E136: =I94 -> 1
C138: ACTUALIZACION DE CURRICULOS ESCOLARES | E138: =I106 -> 1
C140: INCORPORACIÓN DE LA TECNOLOGÍA EN EL PROCESO DE ENSEÑANZA Y APRENDIZAJE | E140: =I112 -> 1
C142: ESCUELAS BILINGÜES | E142: =I119 -> 1
C144: TOTAL PAM | E144: =SUM(E124:E142)/10 -> 0.8874479167

Sheet LA ESCUELA COMO EJE INTEGRADOR
E1: SECRETARIA DE EDUCACION DISTRITAL CARTAGENA DE INDIAS
E2: GEDGE02. COMPROMISO DE LA DIRECCIÓN
E3: INFORME DE SEGUIMIENTO
E4: Codigo: GEDGE02-F001 | I4: Versión: 1 | M4: Vigencia: 20/10/2009
B6: FECHA: | C6: Diciembre 15 De 2016 | F6: PERIODO | G6: Diciembre 15 de 2016 | J6: RESPONSABLE: | L6: CECILIA MORALES URSHELA
B7: 1. INDICADORES
B8: Nodo social humanístico implementado | D8: =INDICADORES!C14 -> Numero de institucione esducativas oficiales beneficiadas con el nodo social humanistico implementado
B9: META | C9: REAL | D9: META | E9: REAL | F9: META | G9: REAL | H9: META | I9: REAL | J9: META | K9: REAL | L9: META | M9: REAL | N9: META | O9: REAL
B10: 1 | C10: 0 | D10: =INDICADORES!E14 -> 2 | E10: =INDICADORES!G14+INDICADORES!G17 -> 2
B11: GRAFICAS
B25: 2. ANALISIS
B26: ANALISIS: | D26: 1, La no ejecución del convenio interinstitucional que garantice la implementación del Nodo Social Humanístico con enfasís en danza y música. 2. Se realizó con la gestión de aliados y la articulación de la alianza Fundación Mamonal y aliado internacional.
B27: RECOMENDACIONES PARA LA MEJORA | E27: 1. Desarrollo de un convenio publico - para la implementación de un programas de formacion con enfasis en musica y danzas a fin de fortalecer las manifestaciones artisticas y musicales de niños, niñas y jovenes en 10 I.E.O. 2. Realizar la Transferencia Directa a la IE de la Boquilla, a fin de desarrollar el programa de musica con niños, niñas y jovenes de la I.E.O como jornada escolar complementaria.
B28: ¿Se generan acciones? | D28: Correctivas No. | G28: Preventiva No. | J28: De mejora No. X | M28: Producto No Conforme | O28: No.

Sheet ESCUELAS VERDES
E1: SECRETARIA DE EDUCACION DISTRITAL CARTAGENA DE INDIAS
E2: GEDGE02. COMPROMISO DE LA DIRECCIÓN
E3: INFORME DE SEGUIMIENTO
E4: Codigo: GEDGE02-F001 | I4: Versión: 1 | M4: Vigencia: 20/10/2009
B6: FECHA: | C6: Diciembre 15 de 2016 | F6: PERIODO | G6: ='LA ESCUELA COMO EJE INTEGRADOR'!G6:I6 -> Diciembre 15 de 2016 | J6: RESPONSABLE: | L6: CECILIA MORALES URSHELA
B7: 1. INDICADORES
B8: =INDICADORES!C22 -> Proyectos ambientales educativos - PRAES ajustados en IEO
B9: META | C9: REAL | D9: META | E9: REAL | F9: META | G9: REAL | H9: META | I9: REAL | J9: META | K9: REAL | L9: META | M9: REAL | N9: META | O9: REAL | P9: META | Q9: REAL
B10: =INDICADORES!E22 -> 10 | C10: =INDICADORES!G22 -> 7
B11: GRAFICAS
A41: E
B47: 2. ANALISIS
B48: ANALISIS: | D48: 1- En este proyecto se contó con el acompañamiento pedagógico de diez (10) aliados estratégicos para su ajuste de acuerdo al contexto y proyecto educativo institucional - PEI
B49: RECOMENDACIONES PARA LA MEJORA | E49: Para la vigencia 2017 se requiere asistir tecnicamente a las IEO focalizadas a través del acompañamiento presencial y situado teniendo en cuenta su estado actual.
B50: ¿Se generan acciones? | D50: Correctivas No. | G50: Preventiva No. | J50: De mejora No. 1 | L50: x | M50: Producto No Conforme | Q50: No.

Sheet CIUDAD ESCUELA COMPROMISO
D1: SECRETARIA DE EDUCACION DISTRITAL CARTAGENA DE INDIAS
D2: GEDGE02. COMPROMISO DE LA DIRECCIÓN
D3: INFORME DE SEGUIMIENTO
D4: Codigo: GEDGE02-F001 | H4: Versión: 1 | L4: Vigencia: 20/10/2009
A6: FECHA: | B6: Diciembre 15 de 2016 | E6: PERIODO | F6: Diciembre 15 de 2016 | I6: RESPONSABLE: | K6: CECILIA MORALES URSHELA
A7: 1. INDICADORES
A8: Numero de IEO con el programa escuelas para padres fortalecidos
A9: META | B9: REAL | C9: META | D9: REAL | E9: META | F9: REAL | G9: META | H9: REAL | I9: META | J9: REAL | K9: META | L9: REAL | M9: META | N9: REAL | O9: META | P9: REAL
A10: 10 | B10: 10
A11: GRAFICAS
A33: 2. ANALISIS
A34: ANALISIS: | C34: 1. La meta en este proyecto se cumplió con el acompañamiento del Ministerio de Educacion Nacional MEN a través de la estrategia "RED PAPAZ " en el cual se atendieron 31 IEO en 3 sesiones con acompañamiento grupal y posteriormente de manera virtual
A35: RECOMENDACIONES PARA LA MEJORA | D35: 1- Seguimiento a la estrategia "RED PAPAZ" en las 31 IEO 2- Seguimiento al desarrollo del DIA E, Dia de la familia 3-Asistencia técnica a las IE focalizadas de acuerdo a la normatividad vigente
A36: ¿Se generan acciones? | C36: Correctivas No. | F36: Preventiva No. | I36: De mejora No. 1 | K36: x | L36: Producto No Conforme | P36: No.

Sheet IMPLEMENTACION CATEDRA PAZ
D1: SECRETARIA DE EDUCACION DISTRITAL CARTAGENA DE INDIAS
D2: GEDGE02. COMPROMISO DE LA DIRECCIÓN
D3: INFORME DE SEGUIMIENTO
D4: Codigo: GEDGE02-F001 | H4: Versión: 1 | L4: Vigencia: 20/10/2009
A6: FECHA: | B6: Diciembre 15 de 2016 | E6: PERIODO | F6: Diciembre 15 de 2016 | I6: RESPONSABLE: | K6: CECILIA MORALES URSHELA
A7: 1. INDICADORES
A8: Docentes formados en justicia, reconciliacion y tolerancia | C8: Numero de IEO con la catedra Cartagena en paz implementada
A9: META | B9: REAL | C9: META | D9: REAL | E9: META | F9: REAL | G9: META | H9: REAL | I9: META | J9: REAL | K9: META | L9: REAL | M9: META | N9: REAL | O9: META | P9: REAL
A10: 200 | B10: 92 | C10: 10 | D10: 8
A11: GRAFICAS
A25: 2. ANALISIS
A26: ANALISIS: | C26: 1- Identificacion de buenas practicas para el establecimiento de linea base 2015
A27: RECOMENDACIONES PARA LA MEJORA | D27: 1. Asistencias técnicas a 50 IEO sobre lineamientos para el desarrollo de la Cátedra Cartagena en Paz.
A28: ¿Se generan acciones? | C28: Correctivas No. | F28: Preventiva No. | I28: De mejora No. 1 | K28: x | L28: Producto No Conforme | P28: No.

Sheet MEJORES DOCENTES Y DIRECTIVOS
D1: SECRETARIA DE EDUCACION DISTRITAL CARTAGENA DE INDIAS
D2: GEDGE02. COMPROMISO DE LA DIRECCIÓN
D3: INFORME DE SEGUIMIENTO
D4: Codigo: GEDGE02-F001 | H4: Versión: 1 | L4: Vigencia: 20/10/2009
A6: FECHA: | B6: Diciembre 15 De 2016 | E6: PERIODO | F6: Diciembre 15 De 2016 | I6: RESPONSABLE: | K6: CECILIA MORALES URSHELA
A7: 1. INDICADORES
A8: Numero de docentes formados en evaluacion por competencias | C8: Numero de docentes formados en metodologia de investigacion | E8: Numero de docentes y directivos docentes formados en especializaciones y/o maestrias | G8: Numero de directivos docentes cualificados en gestion escolar | I8: Numero de docentes y directivos docentes con experiencias educativas innovadoras
A9: META | B9: REAL | C9: META | D9: REAL | E9: META | F9: REAL | G9: META | H9: REAL | I9: META | J9: REAL | K9: META | L9: REAL | M9: META | N9: REAL
A10: 225 | B10: 218 | C10: 100 | D10: 156 | E10: 40 | F10: 156 | G10: 0 | H10: 0 | I10: 100 | J10: 340
A11: GRAFICAS
A32: 2. ANALISIS
A33: ANALISIS: | C33: 1. Los avances en este proyecto se dieron a traves de acompañamientos de aliados y convenios, tales como Convenio Universidad de Cartagena, linea de investigacion en la maestria,coordinacion con el proyecto radio escolar y acompañamiento de aliados
A34: RECOMENDACIONES PARA LA MEJORA | D34: 1. Aprobacion del Plan de Formacion Docente por parte de la JUDI. 2. Convocatoria publica o invitacion publica a Universidades o entidades a fines en programas de formacion. 3. Recepcion, estudio y seleccion de propuesta para la conformacion del Banco. 4. Contratacion para dar inicio al Programa de Formacion. 5. Acompañamiento y seguimiento a entidades oferentes.
A35: ¿Se generan acciones? | C35: Correctivas No. | F35: Preventiva No. | I35: De mejora No. 1 | K35: x | L35: Producto No Conforme | N35: No.

Sheet INCORPORACION DE LA TECNOLOGIA
D1: SECRETARIA DE EDUCACION DISTRITAL CARTAGENA DE INDIAS
D2: GEDGE02. COMPROMISO DE LA DIRECCIÓN
D3: INFORME DE SEGUIMIENTO
D4: Codigo: GEDGE02-F001 | H4: Versión: 1 | L4: Vigencia: 20/10/2009
A6: FECHA: | B6: Diciembre 15 de 2016 | E6: PERIODO | F6: Diciembre 15 de 2016 | I6: RESPONSABLE: | K6: CECILIA MORALES URSHELA
A7: 1. INDICADORES
A8: Número de docentes y directivos docentes formados en uso y apropiación de TIC | C8: Número de docentes que aplican las TIC en procesos de enseñanzas y aprendizajes
A9: META | B9: REAL | C9: META | D9: REAL | E9: META | F9: REAL | G9: META | H9: REAL | I9: META | J9: REAL | K9: META | L9: REAL
A10: 650 | B10: 614 | C10: 50 | D10: 50
A11: 0
A34: 2. ANALISIS
A35: ANALISIS: | C35: 1. El cumplimiento se dio a traves del acompañamiento de entidades aliadas como ASOANDES, Computadore para educar y MINTIC, Colegios 10 TIC mediante convenio con Ministerio de Educacion nacional - MINTIC - EAFIC, Antioquia.
A36: RECOMENDACIONES PARA LA MEJORA | D36: 1. Asistencias tecnicas a las I.E focalizadas mediante el acompañamiento de aliados. 2. Aplicacion de instrumento que permita la recoleccion, revision y consolidacion de Buenas Practicas en el uso de TIC.
A37: ¿Se generan acciones? | C37: Correctivas No. | F37: Preventiva No. X | H37: ______ | I37: De mejora No. 1 | J37: X | L37: Producto No Conforme | N37: No.

Sheet FORTALECIMIENTOMODE ETNOEDUC
D1: SECRETARIA DE EDUCACION DISTRITAL CARTAGENA DE INDIAS
D2: GEDGE02. COMPROMISO DE LA DIRECCIÓN
D3: INFORME DE SEGUIMIENTO
D4: Codigo: GEDGE02-F001 | H4: Versión: 1 | L4: Vigencia: 20/10/2009
A5: FECHA: | B5: Diciembre 15 de 2016 | E5: PERIODO | F5: Diciembre 15 de 2016 | I5: RESPONSABLE: | K5: CECILIA MORALES URSHELA
A6: 1. INDICADORES
A7: Numero de IEO Etnoeducatvas con PEI ajustados y actualizados | C7: Numero de IEO que desarrollan la catedra estudios afrocolombianos
A8: META | B8: REAL | C8: META | D8: REAL | E8: META | F8: REAL | G8: META | H8: REAL | I8: META | J8: REAL | K8: META | L8: REAL | M8: META | N8: REAL
A9: 5 | B9: =INDICADORES!E68 -> 5 | C9: 10 | D9: 10
A10: GRAFICAS
A31: 2. ANALISIS
A32: ANALISIS: | C32: 1. Se avanzó en la caracterizacion del sector etnoeducativo e implementacion a la ruta de resignificacion de PEI como PEC de manera conjunta, I.E.O y SED. 2. Se avanzó en la Consolidacion de la catedra de Estudios Afrocolombianos.
A33: RECOMENDACIONES PARA LA MEJORA | D33: 1.Vinculación del equipo docente de las IEO Etnoeducativas, en el proceso de asesoría, acompañamiento y asistencia técnica para la resignificación de los PEC. 2. Integración de la Cátedra de Estudios Afrocolombianos al currículo.
A34: ¿Se generan acciones? | C34: Correctivas No. | F34: Preventiva No. | I34: De mejora No. 1 | K34: x | L34: Producto No Conforme | N34: No.

Sheet SABER MAS SABER MEJOR
E1: SECRETARIA DE EDUCACION DISTRITAL CARTAGENA DE INDIAS
E2: GEDGE02. COMPROMISO DE LA DIRECCIÓN
E3: INFORME DE SEGUIMIENTO
E4: Codigo: GEDGE02-F001 | I4: Versión: 1 | M4: Vigencia: 20/10/2009
B6: FECHA: | C6: Diciembre 15 de 2016 | F6: PERIODO | G6: Diciembre 15 de 2016 | J6: RESPONSABLE: | L6: CECILIA MORALES URSHELA
B7: 1. INDICADORES
B8: Numero de IEO con ISCE e la media , con nivel al menos igual al ISCE promedio nacional | D8: Numero de IEO con grado 11 con desempeños alieados en la clasificacion A+, A y B | F8: Mejorar componente , desempeño ISCE Basica Primaria | H8: Mejorar componente ISCE Basica Secundaria | J8: Mejorar componente(ISCE)desempeño Media | L8: Numero de IEO con semilleros de investigacion implementados
B9: META | C9: REAL | D9: META | E9: REAL | F9: META | G9: REAL | H9: META | I9: REAL | J9: META | K9: REAL | L9: META | M9: REAL | N9: META | O9: REAL
B10: 9 | C10: 9 | D10: 6 | E10: 6 | F10: 2.5 | G10: 5 | H10: 5 | I10: 5 | J10: 5 | K10: 5 | L10: 5 | M10: 5
B11: GRAFICAS
B22: 2. ANALISIS
B23: ANALISIS: | D23: 1-Se estableció convenio con la Universidad de Cartagena para el fortalecimiento de las areas de lenguaje y matematicas dirigido a 26 IEO, y el acompañamiento del Ministerio de Educacion Nacional y el ICFES para el analisis y uso de resultados de la prueba saber aplicado a los PMI
B24: RECOMENDACIONES PARA LA MEJORA | E24: 1- Priorizar las IEO ubicadas en clasificacion D , como criterio de selección para participar en los proyectos de la SED del MEN y aliados 2- Priorizar las IEO con indice sintetico por debajo de la media , como criterio de selección para participar en los proyectos de la SED del MEN y aliados 3-Asistir tecnicamente a las IEO focalizadas para el acompañamiento en el desarrollo del DIA E, DIA E DE FAMILIA y SIEMPRE DIA E
B25: ¿Se generan acciones? | D25: Correctivas No. | G25: Preventiva No. | J25: De mejora No. 1 | L25: X | M25: Producto No Conforme | O25: No.

Sheet ACTUALIZACION DE CURR ESCOLARES
D1: SECRETARIA DE EDUCACION DISTRITAL CARTAGENA DE INDIAS
D2: GEDGE02. COMPROMISO DE LA DIRECCIÓN
D3: INFORME DE SEGUIMIENTO
D4: Codigo: GEDGE02-F001 | H4: Versión: 1 | L4: Vigencia: 20/10/2009
A6: FECHA: Diciembre 15 de 2016 | E6: PERIODO: Diciembre 15 de 2016 | I6: RESPONSABLE: | K6: CECILIA MORALES URSHELA
A7: 1. INDICADORES
A8: Numero de instituciones educativas con curriculos ajustados | C8: Numero de instiruciones educativas fortalecidas en la gestion escolar integral | E8: Numero de instituciones educativas con proyectos educativos institucionales resignificados
A9: META | B9: REAL | C9: META | D9: REAL | E9: META | F9: REAL | G9: META | H9: REAL | I9: META | J9: REAL | K9: META | L9: REAL | M9: META | N9: REAL
A10: 10 | B10: 16 | C10: 10 | D10: 22 | E10: 10 | F10: 22
A11: GRAFICAS
A25: 2. ANALISIS
A26: ANALISIS: | C26: 1. Se recibio acompañamiento del Ministerio de Educacion Nacional -MEN a traves de la estrategia de integracion de curriculos escolares a 16 IEO en 4 encuentros presenciales, en el cual participaron el rector y los equipos de gestión, para un promedio de 100 representantes de IEO. 2. Se contó con el acompañamiento del programa educativo fortalecimiento del sistema de gestión escolar a través de Lideres Siglo XXI- Fundación Nutresa. 3. Se contó con el acompañamiento del programa educativo fortalecimiento del sistema de gestión escolar a través de Lideres Siglo XXI- Fundación Nutresa.
A27: RECOMENDACIONES PARA LA MEJORA | D27: 1- Elaboración del esquema de acompañamiento y seguimiento para la actualizacion de curriculos escolares en las IEO. 2- Focalizacion de 26 IEO para el acompañamiento en actualizacion de curriculos escolares. 3-Mesa de trabajo con entidades administradoras de las IEO para el establecimiento de acuerdos en el cumplimiento de la actualizacion de curriculos escolares. 4- Mesa de trabajo con aliados para el establecimiento de acuerdos en el cumplimiento de la actualizacion de curriculos escolares. 5. Acompañamiento y seguimiento al cumplimiento de las especificaciones técnicas de las IEO en gestión del PEI y del PMI.
A28: ¿Se generan acciones? | C28: Correctivas No. | F28: Preventiva No. | I28: De mejora No. | K28: x | L28: Producto No Conforme | N28: No.

Sheet ESCUELAS BILINGUES
D1: SECRETARIA DE EDUCACION DISTRITAL CARTAGENA DE INDIAS
D2: GEDGE02. COMPROMISO DE LA DIRECCIÓN
D3: INFORME DE SEGUIMIENTO
D4: Codigo: GEDGE02-F001 | H4: Versión: 1 | L4: Vigencia: 20/10/2009
A6: FECHA: | B6: Diciembre 15 de 2016 | E6: PERIODO | F6: Diciembre 15 de 2016 | I6: RESPONSABLE: | K6: CECILIA MORALES URSHELA
A7: 1. INDICADORES
A8: % de estudiantes de IEO con jornada extendida bilingüe con nivel minimo "B1" en las pruebas Saber 11°, según el MCERL
A9: META | B9: REAL | C9: META | D9: REAL | E9: META | F9: REAL | G9: META | H9: REAL | I9: META | J9: REAL | K9: META | L9: REAL | M9: META | N9: REAL | O9: META | P9: REAL | Q9: META | R9: REAL
A10: 0.05 | B10: 0.038
A11: GRAFICAS
A24: 2. ANALISIS
A25: ANALISIS: | C25: 1. Talleres de uso y apropiación de textos de inglés Way To Go! a docentes de inglés. 2. talleres de socialización de los curriculos sugeridos por el Ministerio de Educación Nacional. 3. Inmersiones nacionales e internacionales a docentes de inglés ofrecidas por el MEN.
A26: RECOMENDACIONES PARA LA MEJORA | D26: 1. Alianzas estrategicas con entidades especializadas en enseñanza del idioma inglés para que acompañen pedagogicamente a estudiantes de grado 11°, que permitan alcanzar niveles satisfactorios en la prueba Saber 11°. 2. Inmersiones para docentes en paises angloparlantes, permitiendo una mejora en las competencias lingüisticas de los docentes participantes. 3. Olimpiadas Intercolegiales Bilingüe para docentes de inglés de las IEO del Distrito focalizadas en el proyecto. 4. Asistencia Técnica a 10 docentes de inglés, con el acompañamiento de Instituciones Educativas de la ciudad de Barranquilla Colegio Jorge N. Abello, Instituto Alexander Von Humboldt, Institución Educativa Distrital Madre Marcelina; con buenos resultados en el desempeño de sus estudiantes en la prueba Saber 11° en inglés. 5. Prueba diagnostica de inglés para ubicar el nivel de inglés en docentes de grado 6° a 11° de las IEO focalizadas en el proyecto.
A27: ¿Se generan acciones? | C27: Correctivas No. | F27: Preventiva No. | I27: De mejora No. | K27: X | L27: Producto No Conforme | R27: No.

Sheet RESUMEN POR PROYECTOS
D1: SECRETARIA DE EDUCACION DISTRITAL CARTAGENA DE INDIAS
D2: GEDGE02. COMPROMISO DE LA DIRECCIÓN
D3: INFORME DE SEGUIMIENTO
D4: Codigo: GEDGE02-F001 | H4: Versión: 1 | L4: Vigencia: 20/10/2009
A6: FECHA: | B6: Diciembre 15 de 2016 | E6: PERIODO | F6: Diciembre 15 de 2016 | I6: RESPONSABLE: | K6: CECILIA MORALES URSHELA
A7: 1. INDICADORES
A8: LA ESCUELA COMO EJE INTEGRADOR | C8: ESCUELAS VERDES | E8: CIUDAD ESCUELA COMPROMISO DE TODOS | G8: IMPLEMENTACION DE LA CATEDRA DE PAZ | I8: MEJORES DOCENTES Y DIRECTIVOS DOCENTES | K8: FORTALECIMIENTO DEL MODELO PEDAGOGICO ETNOEDUCATIVO | M8: SABER MAS SABER MEJOR | O8: ACTUALIZACION DE CURRICULOS ESCOLARES | Q8: INCORPORACION DE LA TECNOLOGIA EN EL PROCESO DE ENSEÑANZA APRENDIZAJE | S8: ESCUELAS BILINGUES
A9: META | B9: REAL | C9: META | D9: REAL | E9: META | F9: REAL | G9: META | H9: REAL | I9: META | J9: REAL | K9: META | L9: REAL | M9: META | N9: REAL | O9: META | P9: REAL | Q9: META | R9: REAL | S9: META | T9: REAL
A10: 0.45 | B10: 0.67 | C10: 0.45 | D10: 1 | E10: 0.45 | F10: 1 | G10: 0.45 | H10: 0.71 | I10: 0.45 | J10: 1 | K10: 0.45 | L10: 0.5 | M10: 0.45 | N10: 1 | O10: 0.45 | P10: 1 | Q10: 0.45 | R10: 1 | S10: 0.45 | T10: 1
A11: GRAFICAS
A47: 2. ANALISIS
A48: ANALISIS: | C48: De los diez proyectos establecidos en el Plan de Desarrollo "PRIMERO LA GENTE 2016 - 2019", se dio cumplimiento de acuerdo a los indicadores y metas al100%. Debido al acompañamiento de aliados y gestión de los líderes de proyectos.
A49: RECOMENDACIONES PARA LA MEJORA | D49: 1. Revisar las asignaciones presupuestal de cada proyecto y establecer un Plan de mejoramiento para la utilización de los recursos.
A50: ¿Se generan acciones? | C50: Correctivas No. | F50: Preventiva No. | I50: De mejora No. X | L50: Producto No Conforme | R50: No.

Sheet PAM -DIC 2016
D1: SECRETARIA DE EDUCACION DISTRITAL CARTAGENA DE INDIAS
D2: GEDGE02. COMPROMISO DE LA DIRECCIÓN
D3: INFORME DE SEGUIMIENTO
D4: Codigo: GEDGE02-F001 | H4: Versión: 1 | L4: Vigencia: 20/10/2009
A6: FECHA: | B6: ='ESCUELAS BILINGUES'!B6:D6 -> Diciembre 15 de 2016 | E6: PERIODO | F6: ='ESCUELAS BILINGUES'!F6:H6 -> Diciembre 15 de 2016 | I6: RESPONSABLE: | K6: CECILIA MORALES URSHELA
A7: 1. INDICADORES
A8: CUMPLIMIENTO PAM Diciembre 2016
A9: META | B9: REAL | C9: META | D9: REAL | E9: META | F9: REAL | G9: META | H9: REAL | I9: META | J9: REAL | K9: META | L9: REAL | M9: META | N9: REAL
A10: 0.9 | B10: 0.89
A11: GRAFICAS
A26: 2. ANALISIS
A27: ANALISIS: | C27: En los resultados del PAM, durante la vigencia 2016, se observa que la meta se cumplió en un 89%. Sólo se asignó presupuesto al proyecto Saber más, saber mejor por un valor de $440,000,000,oo en convenio con la Universidad de Cartagena. Los proyectos restantes se dieron por gestión de los lideres, aliados y acompañamiento del MEN.
A28: RECOMENDACIONES PARA LA MEJORA | D28: 1. Alinear las actividades que se programen en cada uno de los proyectos teniendo en cuenta los indicadores y metas de cada proyecto. 2. Desarrollar las asistencias tecnicas en los diferentes proyectos que permitan impactar los aprendizajes de los estudiantes. 3. Continuidad en las alianzas y acompañamiento del MEN.
A29: ¿Se generan acciones? | C29: Correctivas No. | F29: Preventiva No. | I29: De mejora No. | K29: X | L29: Producto No Conforme | N29: No.
